bitfinex/quotes_ETHUSD_20250721
["timestamp","ask_amount","ask_price","bid_price","bid_amount"]
[1753088074710,0.02894487,3772.2,3771.8,2.65125404]
[1753088074910,4.417,3772.1,3771.3,0.001]
[1753088075094,0.02894487,3772.2,3771.9,2.6511392]
[1753088075281,4.413,3772.1,3771.4,2.65153523]
[1753088075486,0.002,3772.4,3772.1,0.7816]
[1753088075685,0.002,3772.4,3772.3,2.65090263]
[1753088076507,0.002,3772.4,3771.5,2.65146493]
[1753088076708,0.002,3772.4,3772.3,2.65090263]
[1753088079111,0.002,3772.4,3772.3,2.98311165]
[1753088079270,0.002,3772.4,3772.3,3.89541165]
[1753088079477,0.002,3772.4,3772.3,3.56320263]
[1753088079677,0.002,3772.4,3772.3,2.65090263]
[1753088081302,0.002,3772.4,3772.3,3.22080071]
[1753088081497,0.002,3772.4,3772.3,3.19429169]
[1753088081833,0.002,3772.4,3772.3,2.78290263]
[1753088082107,0.4748,3772.4,3772.3,2.78290263]
[1753088082313,0.4748,3772.4,3772.0,0.132]
[1753088082509,0.132,3772.3,3772.2,2.65092816]
[1753088082910,0.002,3772.4,3772.3,2.65090263]
[1753088083225,1e-08,3772.4,3772.3,3.78105137]
[1753088083394,1e-08,3772.4,3772.3,3.44884235]
[1753088085204,1e-08,3772.4,3772.3,3.47535137]
[1753088085384,1e-08,3772.4,3772.3,3.78105137]
[1753088085579,1e-08,3772.4,3772.3,4.55515137]
[1753088085785,1e-08,3772.4,3772.3,4.52864235]
[1753088085979,1e-08,3772.4,3772.3,4.22294235]
[1753088086417,1e-08,3772.4,3772.3,8.62694235]
[1753088086721,1e-08,3772.4,3772.3,4.22294235]
[1753088086904,1e-08,3772.4,3772.3,8.62694235]
[1753088087111,1e-08,3772.4,3772.3,7.05290263]
[1753088087879,1e-08,3772.4,3772.3,2.65090263]
[1753088089085,1e-08,3772.4,3772.3,2.67741165]
[1753088089407,1e-08,3772.4,3771.4,2.65246715]
[1753088089408,0.7754,3772.3,3771.4,2.65246715]
[1753088089731,0.7754,3772.3,3771.4,0.001]
[1753088089910,2.65127708,3771.8,3771.4,0.001]
[1753088090113,0.02894487,3771.7,3771.4,0.001]
[1753088090428,0.4728,3771.7,3771.4,0.001]
[1753088090587,0.4728,3771.7,3771.5,2.65146493]
[1753088090588,0.4728,3771.6,3771.5,2.65146493]
[1753088090790,0.8199,3771.8,3771.5,2.65146493]
[1753088091016,0.4728,3771.6,3771.4,0.001]
[1753088091218,0.78434487,3772.2,3771.4,2.65249999]
[1753088091395,0.78434487,3772.2,3771.4,0.001]
[1753088091396,0.4728,3772.1,3771.4,0.001]
[1753088091725,0.7554,3772.2,3771.4,0.001]
[1753088091906,0.7554,3772.2,3771.4,0.02751535]
[1753088092109,0.47280001,3772.4,3772.0,2.65106604]
[1753088092291,0.47280001,3772.4,3772.2,2.65096848]
[1753088092489,1e-08,3772.4,3772.3,2.65090263]
[1753088094905,1e-08,3772.4,3771.4,0.7818]
[1753088095148,0.4728,3772.3,3771.9,2.65112889]
[1753088095314,0.4728,3772.3,3771.4,0.7818]
[1753088095315,0.50174487,3772.2,3771.7,2.65130721]
[1753088095648,0.50174487,3772.2,3771.5,2.65141139]
[1753088095649,3.47605208,3772.1,3771.5,2.65141139]
[1753088095800,0.50174487,3772.0,3771.5,2.65141139]
[1753088096005,0.4728,3771.9,3771.5,2.65141139]
[1753088096200,0.4728,3771.8,3771.5,2.65141139]
[1753088096397,0.4728,3771.8,3771.4,2.65252779]
[1753088096600,0.4728,3771.8,3771.7,2.65132433]
[1753088096802,0.02894487,3772.0,3771.7,2.65132433]
[1753088097037,0.50174487,3772.0,3771.4,0.02751535]
[1753088097342,0.825,3772.1,3772.0,2.65111346]
[1753088097547,1.2978,3772.1,3771.4,0.001]
[1753088097844,0.4728,3772.0,3771.5,2.65146493]
[1753088098008,0.4728,3772.0,3771.6,2.65139463]
[1753088098208,0.4728,3772.0,3771.8,2.65123626]
[1753088099108,1e-08,3772.4,3771.7,0.02651324]
[1753088099345,0.132,3772.2,3772.1,2.65102253]
[1753088099550,0.132,3772.2,3771.6,0.132]
[1753088099755,0.6048,3772.2,3772.0,2.65110328]
[1753088099959,0.132,3772.2,3772.0,2.65110328]
[1753088100147,0.4728,3772.1,3771.8,2.65120438]
[1753088100459,0.5787,3772.0,3771.8,2.65120438]
[1753088101153,0.02894488,3772.4,3772.2,2.65092353]
[1753088101154,0.44670001,3772.4,3772.2,2.65092353]
[1753088101359,0.132,3772.3,3772.2,2.65092353]
[1753088101709,1e-08,3772.4,3771.8,0.8262]
[1753088101912,0.44670001,3772.4,3772.1,2.65103498]
[1753088102130,0.4467,3772.3,3772.1,2.65103498]
[1753088102308,0.4467,3772.2,3772.0,2.65109145]
[1753088102521,1e-08,3772.4,3772.0,2.65110596]
[1753088102745,0.4467,3772.3,3772.1,2.65104227]
[1753088103049,0.4467,3772.3,3772.0,2.65109127]
[1753088103352,0.4467,3772.2,3772.0,2.65109127]
[1753088103712,1e-08,3772.4,3772.1,2.65104318]
[1753088104039,1e-08,3772.4,3771.4,0.3067]
[1753088104219,1e-08,3772.4,3772.2,2.65094258]
[1753088104419,1e-08,3772.4,3772.3,2.65090263]
[1753088105677,1e-08,3772.4,3772.3,3.77061165]
[1753088106387,1e-08,3772.4,3772.3,3.74410263]
[1753088106670,1e-08,3772.4,3772.3,8.74388068]
[1753088107175,0.002,3773.2,3773.0,0.767]
[1753088107341,0.002,3774.0,3773.9,2.64977874]
[1753088107664,0.002,3774.0,3773.9,3.44327652]
[1753088107843,0.002,3774.0,3773.9,3.41677874]
[1753088108049,0.002,3774.0,3773.9,2.64977874]
[1753088108371,0.002,3774.0,3773.9,3.51194069]
[1753088108660,0.002,3774.0,3773.9,3.17974291]
[1753088108859,0.002,3774.0,3773.9,3.20624069]
[1753088109061,0.002,3774.0,3773.6,4.367]
[1753088109227,0.002,3774.0,3773.8,2.64979484]
[1753088109429,0.002,3774.0,3773.9,2.67627652]
[1753088110374,0.002,3774.0,3773.9,2.64977874]
[1753088111030,0.4487,3774.0,3773.7,2.64986365]
[1753088111363,0.4467,3773.9,3773.7,2.64985964]
[1753088111883,0.4467,3773.8,3773.7,2.64985964]
[1753088112367,0.4467,3773.8,3773.6,2.64996918]
[1753088112565,0.16294487,3774.0,3773.4,0.132]
[1753088112753,0.4467,3773.9,3773.4,2.78212539]
[1753088112962,0.4467,3773.8,3773.4,0.132]
[1753088113134,0.5787,3773.7,3773.1,2.78234056]
[1753088113326,0.5787,3773.7,3773.2,2.65024972]
[1753088113775,0.132,3773.7,3773.3,2.65018527]
[1753088113981,0.4467,3773.6,3773.3,2.65018527]
[1753088114279,0.4467,3773.5,3773.3,2.65018527]
[1753088114479,0.4467,3773.5,3773.1,0.132]
[1753088114767,0.4467,3773.5,3773.2,2.6502468]
[1753088115682,0.4467,3773.5,3773.1,2.78233549]
[1753088115883,0.4467,3773.4,3773.1,0.132]
[1753088116119,0.4467,3773.4,3773.3,2.65020009]
[1753088116388,0.4467,3773.4,3773.2,2.65024803]
[1753088116732,0.4467,3773.4,3773.1,2.78231418]
[1753088116935,0.4467,3773.4,3773.3,2.65020009]
[1753088117276,0.132,3773.7,3773.6,2.6499894]
[1753088117439,0.134,3774.0,3773.3,0.41022001]
[1753088117633,0.4467,3773.7,3773.3,0.132]
[1753088117864,0.5787,3773.6,3773.3,2.65015318]
[1753088118065,0.5787,3773.6,3773.1,0.0265034]
[1753088118237,0.002,3774.0,3772.9,4.347]
[1753088118238,0.002,3774.0,3773.2,2.65027032]
[1753088118558,0.5787,3773.9,3773.3,0.132]
[1753088118873,0.132,3773.6,3773.3,2.65014679]
[1753088119380,0.4467,3773.5,3773.4,2.65012985]
[1753088119733,0.132,3773.6,3773.5,2.65005962]
[1753088120770,0.5787,3773.6,3773.5,2.65005962]
[1753088120990,0.5787,3773.6,3773.4,2.6501039]
[1753088121133,0.132,3773.6,3773.5,2.65005962]
[1753088121332,0.132,3773.6,3773.4,2.65011414]
[1753088121949,0.4467,3773.5,3773.4,2.65011414]
[1753088122435,0.132,3773.6,3773.4,2.65011414]
[1753088122635,0.5787,3773.6,3773.5,2.65005962]
[1753088122836,0.5787,3773.6,3773.4,2.65011021]
[1753088123036,0.4467,3773.5,3773.4,2.65011021]
[1753088123275,0.4467,3773.5,3773.3,2.65017752]
[1753088123445,0.132,3773.6,3773.4,2.65012365]
[1753088123663,0.4467,3773.5,3773.1,2.65029981]
[1753088123867,0.132,3773.4,3772.9,2.65045062]
[1753088124067,0.132,3773.4,3773.1,2.65029314]
[1753088124263,0.4467,3773.3,3773.1,2.65029314]
[1753088124464,0.002,3774.0,3772.8,0.132]
[1753088124465,1.2634,3773.2,3772.8,2.65048572]
[1753088124764,0.4467,3773.1,3772.5,0.132]
[1753088124969,0.4467,3773.1,3773.0,2.65041081]
[1753088125166,0.4467,3773.1,3773.0,2.40041081]
[1753088125791,0.9487,3773.2,3773.1,2.65034056]
[1753088126178,4.329,3773.4,3773.1,2.65034056]
[1753088126385,4.461,3773.4,3773.1,2.65034056]
[1753088126699,4.461,3773.4,3773.1,2.65029502]
[1753088126902,0.4467,3773.3,3773.1,2.65029502]
[1753088127100,0.4467,3773.3,3773.2,2.65027032]
[1753088128085,0.4467,3773.3,3773.0,2.65038392]
[1753088128262,0.4467,3773.2,3773.1,2.65033595]
[1753088128877,0.132,3773.4,3773.3,2.65020009]
[1753088130073,0.132,3773.4,3773.2,2.65026053]
[1753088130272,0.132,3773.4,3772.7,0.132]
[1753088130273,0.47564487,3773.3,3772.1,2.6510215]
[1753088130501,0.132,3773.0,3772.6,2.65063821]
[1753088130669,0.4509,3772.9,3772.7,2.65061501]
[1753088130867,0.132,3773.0,3772.7,2.65061501]
[1753088131068,0.4509,3772.8,3772.7,2.65061501]
[1753088131667,4.452,3773.0,3772.9,2.65048106]
[1753088131867,4.9029,3773.0,3772.9,2.65048106]
[1753088132412,4.9029,3773.0,3772.3,0.133]
[1753088132570,4.9029,3773.0,3772.9,2.65048106]
[1753088133367,0.132,3773.0,3772.9,2.65048106]
[1753088134595,0.002,3773.4,3773.3,2.65020009]
[1753088136315,0.002,3773.4,3773.3,3.2266686]
[1753088136889,0.002,3773.4,3773.3,3.5323686]
[1753088137083,0.002,3773.4,3773.3,3.2266686]
[1753088137398,0.002,3773.4,3773.3,2.65020009]
[1753088139646,0.002,3773.4,3773.3,2.67670209]
[1753088140230,0.002,3773.4,3773.3,2.65020009]
[1753088142548,0.002,3773.4,3773.3,2.67670209]
[1753088142752,0.002,3773.4,3773.3,2.65020009]
[1753088145630,0.002,3773.4,3773.3,2.67670209]
[1753088145947,0.002,3773.4,3773.3,3.52829428]
[1753088146125,0.002,3773.4,3773.3,3.50179228]
[1753088146319,0.002,3773.4,3773.3,8.63479428]
[1753088146556,0.002,3773.4,3773.3,8.60829228]
[1753088146961,0.002,3774.0,3773.9,2.64977874]
[1753088147322,0.002,3774.0,3773.9,3.33824042]
[1753088148690,0.002,3774.0,3773.9,3.61744264]
[1753088148824,0.002,3774.0,3773.9,3.31174264]
[1753088152028,0.002,3774.0,3773.9,8.72674264]
[1753088153382,0.7997,3774.0,3773.1,0.7913]
[1753088153529,0.7997,3774.0,3773.4,2.65012105]
[1753088153530,6.06374243,3773.7,3773.4,2.65012105]
[1753088153733,0.4509,3773.6,3773.1,2.65031946]
[1753088154044,6.81694243,3773.2,3772.6,2.6506425]
[1753088154382,0.5829,3773.1,3772.5,2.78274158]
[1753088154685,0.4509,3773.0,3772.6,2.65062747]
[1753088154982,0.16094487,3773.1,3772.5,0.132]
[1753088155268,0.132,3773.1,3772.8,0.8223]
[1753088155446,4.7679,3773.5,3773.2,2.65022041]
[1753088155643,4.449,3773.4,3773.3,2.65020009]
[1753088155971,4.317,3773.4,3773.3,2.65020009]
[1753088156145,4.449,3773.6,3773.0,0.132]
[1753088156333,1.6509,3773.7,3772.8,0.8223]
[1753088156334,5.9679,3773.7,3772.8,0.8223]
[1753088156539,6.0999,3773.7,3773.3,2.65015273]
[1753088156763,0.4509,3773.6,3773.3,2.65015273]
[1753088156966,5.649,3773.7,3773.0,0.132]
[1753088157168,5.517,3773.7,3773.6,2.6499894]
[1753088157872,1.2,3773.7,3773.6,3.4458894]
[1753088158078,1.6509,3773.7,3773.5,2.65000576]
[1753088158379,0.4509,3773.6,3773.5,2.65000576]
[1753088159194,0.4509,3773.6,3773.2,0.132]
[1753088159342,0.4509,3773.5,3772.5,6.96770902]
[1753088159541,0.132,3773.4,3772.8,0.132]
[1753088159745,0.4509,3773.3,3772.8,0.132]
[1753088160055,0.4509,3773.3,3772.3,0.001]
[1753088160056,0.132,3773.0,3772.9,2.65048106]
[1753088160254,0.7511,3773.1,3773.0,2.65041081]
[1753088160899,1.2027,3773.1,3772.6,0.132]
[1753088161046,0.7511,3773.1,3772.7,2.65062157]
[1753088161246,0.4516,3773.0,3772.8,2.65051767]
[1753088161548,0.4516,3772.9,3772.8,2.65051767]
[1753088161743,0.7511,3773.1,3773.0,2.65041081]
[1753088162148,0.5836,3773.2,3773.1,2.65034056]
[1753088162349,0.5836,3773.2,3772.8,2.65049031]
[1753088162350,4.8996,3773.2,3773.0,2.65039097]
[1753088162787,0.002,3774.0,3773.1,0.791]
[1753088162984,0.002,3774.0,3773.9,2.64977874]
[1753088163668,4.318,3774.0,3773.9,2.64977874]
[1753088164180,0.002,3774.0,3773.9,3.60667874]
[1753088164387,0.002,3774.0,3773.9,2.78177874]
[1753088164545,0.4536,3774.0,3773.9,2.64977874]
[1753088164746,0.4536,3774.0,3773.8,2.78183806]
[1753088164948,4.315,3773.9,3773.8,2.78183806]
[1753088165290,4.7666,3773.9,3773.3,0.8249]
[1753088165597,4.315,3773.8,3773.4,0.132]
[1753088165775,4.315,3773.7,3773.0,2.6503646]
[1753088165971,4.315,3773.6,3773.1,0.34188646]
[1753088166284,4.315,3773.6,3773.1,3.29790776]
[1753088166483,4.315,3773.6,3773.5,2.78205962]
[1753088166652,4.315,3773.6,3773.5,0.132]
[1753088166852,4.315,3773.6,3773.1,2.65032099]
[1753088167052,4.315,3773.6,3773.3,0.132]
[1753088167249,4.315,3773.6,3773.3,2.7821866]
[1753088167476,4.315,3773.6,3773.5,2.65005962]
[1753088167783,0.134,3774.0,3773.9,3.41617874]
[1753088167983,4.317,3774.0,3773.9,3.41617874]
[1753088168283,4.317,3774.0,3773.9,0.132]
[1753088168488,4.7686,3774.0,3773.4,0.132]
[1753088168649,4.7686,3774.0,3773.7,2.64989672]
[1753088168849,0.4516,3773.9,3773.6,2.64997801]
[1753088169049,0.4516,3773.8,3773.7,2.64991917]
[1753088169284,4.315,3773.8,3773.7,2.64991917]
[1753088169971,0.4516,3773.8,3773.6,2.64992555]
[1753088170371,4.315,3773.7,3773.6,2.64992555]
[1753088170888,4.7666,3773.7,3773.6,2.64992555]
[1753088171091,4.7656,3773.7,3773.6,2.64992555]
[1753088171908,0.002,3774.0,3773.4,0.132]
[1753088172108,4.314,3773.7,3773.6,2.6499894]
[1753088172958,0.002,3774.0,3773.7,2.64989454]
[1753088173298,4.314,3773.9,3773.8,2.64983088]
[1753088173863,0.002,3774.0,3773.5,0.02650059]
[1753088174083,0.002,3774.0,3773.9,2.64977874]
[1753088174285,3.85827874,3773.9,3773.8,0.132]
[1753088174500,0.132,3773.5,3772.9,2.65041923]
[1753088174701,0.132,3773.2,3773.1,2.65034056]
[1753088174998,4.314,3773.2,3773.0,2.65040491]
[1753088175189,0.132,3773.5,3772.9,0.132]
[1753088175385,0.132,3773.5,3773.4,2.65012985]
[1753088175565,4.313,3773.5,3773.4,2.67663114]
[1753088175766,0.002,3774.0,3773.8,2.64984895]
[1753088175999,4.313,3773.9,3773.8,2.64984895]
[1753088176205,0.002,3774.0,3773.8,2.64984895]
[1753088176206,0.002,3774.0,3773.9,2.64977874]
[1753088176367,0.002,3774.0,3773.9,4.29723929]
[1753088176903,0.002,3774.0,3773.9,3.96504151]
[1753088177871,0.002,3774.0,3773.9,3.99153929]
[1753088178407,0.002,3774.0,3773.9,3.17974151]
[1753088178827,0.002,3774.0,3773.9,2.64977874]
[1753088181328,0.002,3774.0,3773.9,2.67627652]
[1753088181882,0.002,3774.0,3773.9,2.98197652]
[1753088182104,1e-08,3774.0,3773.9,3.78887652]
[1753088182328,0.002,3774.8,3773.9,3.78887652]
[1753088182329,0.002,3774.8,3774.7,2.64921715]
[1753088182485,0.002,3774.8,3774.7,3.72103887]
[1753088182680,0.002,3774.8,3774.7,3.87953104]
[1753088183126,0.002,3774.8,3774.7,4.18523104]
[1753088183418,0.002,3775.6,3775.5,2.6486558]
[1753088183621,4.314,3775.6,3775.5,2.6486558]
[1753088184418,0.002,3775.6,3775.5,2.6486558]
[1753088184622,0.002,3775.6,3775.5,3.19424428]
[1753088184827,0.002,3775.6,3775.5,4.00454428]
[1753088185897,0.002,3775.6,3775.5,4.03103083]
[1753088186298,0.002,3775.6,3775.5,4.31024428]
[1753088186488,0.002,3775.6,3775.5,4.00454428]
[1753088186808,0.002,3775.6,3775.5,3.19424428]
[1753088187932,0.002,3775.6,3775.5,3.22073083]
[1753088188095,0.002,3775.6,3775.5,3.52643083]
[1753088188429,0.002,3775.6,3775.5,3.49994428]
[1753088188747,0.002,3775.6,3775.5,3.19424428]
[1753088189041,0.002,3775.6,3775.5,3.22073083]
[1753088189996,6.358,3776.4,3776.3,2.64809469]
[1753088190191,0.8942,3777.0,3776.3,0.132]
[1753088190398,4.7836,3776.9,3776.6,2.6478284]
[1753088190698,0.4746,3776.8,3776.6,2.6478284]
[1753088190900,0.4746,3776.7,3776.6,2.6478284]
[1753088191096,0.4746,3776.8,3776.5,2.64795248]
[1753088191446,0.4746,3776.8,3776.7,2.64781422]
[1753088191639,4.7836,3776.8,3776.7,2.64781422]
[1753088191835,0.7622,3777.0,3776.9,2.64767401]
[1753088192021,1.2368,3777.0,3776.8,2.64773366]
[1753088192223,0.4746,3776.9,3776.8,2.64773366]
[1753088192426,4.7826,3776.9,3776.8,2.64773366]
[1753088192799,0.7622,3777.0,3776.9,2.64767401]
[1753088193001,0.4766,3777.3,3777.2,2.64746372]
[1753088193002,1.2388,3777.3,3777.2,2.64746372]
[1753088193236,5.0722,3777.3,3777.2,2.64746372]
[1753088193731,4.31,3777.3,3777.2,2.64746372]
[1753088193951,0.002,3777.3,3777.2,2.64746372]
[1753088194142,4.31,3777.3,3777.2,2.64746372]
[1753088194436,0.002,3777.3,3777.2,2.64746372]
[1753088195110,0.4766,3777.3,3777.1,0.132]
[1753088195334,0.4746,3777.2,3777.1,2.64753382]
[1753088195560,1.202,3777.3,3777.2,2.64746372]
[1753088195721,5.509,3777.3,3777.2,2.64746372]
[1753088195922,4.309,3777.3,3777.2,2.64746372]
[1753088196133,0.002,3777.3,3777.2,2.64746372]
[1753088196340,0.002,3777.3,3777.2,4.13461115]
[1753088197424,0.002,3777.3,3777.2,4.16108578]
[1753088197857,0.4746,3778.1,3777.8,2.64704325]
[1753088198033,4.306,3777.9,3777.8,2.64704325]
[1753088198234,0.002,3778.3,3778.2,2.646763]
[1753088198758,4.308,3778.3,3778.2,2.778763]
[1753088198999,4.7826,3778.3,3778.2,2.778763]
[1753088199267,4.7826,3778.3,3778.2,2.646763]
[1753088199428,0.4766,3778.3,3778.2,2.646763]
[1753088199772,4.7816,3778.3,3777.3,2.64739364]
[1753088199929,4.7816,3778.3,3777.3,3.04764775]
[1753088200254,4.7816,3778.3,3777.3,0.40025411]
[1753088200436,0.4746,3778.2,3777.2,0.8098]
[1753088200636,0.4746,3778.2,3778.1,2.64683306]
[1753088200851,4.7796,3778.2,3778.1,2.64683306]
[1753088201367,0.4746,3778.2,3778.1,2.64683306]
[1753088201539,0.002,3778.3,3778.2,2.646763]
[1753088202543,0.002,3778.3,3778.2,2.67323063]
[1753088203379,0.002,3778.3,3778.2,2.6564842]
[1753088203880,0.002,3778.3,3778.2,2.63001657]
[1753088204668,1e-08,3778.6,3778.5,2.64655286]
[1753088204858,1e-08,3778.6,3778.5,3.51467335]
[1753088205269,1e-08,3778.6,3778.5,2.64655286]
[1753088205937,1e-08,3778.6,3777.9,0.7541]
[1753088206232,1e-08,3778.6,3777.6,3.4487]
[1753088206233,0.7885,3778.5,3777.6,0.4487]
[1753088206437,0.7885,3778.5,3777.9,2.64691612]
[1753088206739,0.7885,3778.5,3777.8,2.64703282]
[1753088206939,0.7885,3778.5,3778.4,2.6466229]
[1753088207164,1e-08,3778.6,3778.5,2.64655286]
[1753088207367,1e-08,3778.6,3778.5,3.44054295]
[1753088208575,1e-08,3778.6,3778.5,3.46700847]
[1753088208778,1e-08,3778.6,3778.5,3.44054295]
[1753088209674,1e-08,3778.6,3778.5,3.57254295]
[1753088212756,0.7649,3779.0,3778.9,2.64627272]
[1753088213844,0.7649,3779.0,3778.5,0.132]
[1753088214044,9.98876909,3779.0,3778.3,2.64664886]
[1753088214260,0.132,3778.8,3778.3,2.64664886]
[1753088214554,9.22386909,3778.5,3776.9,0.7977]
[1753088214865,4.3,3778.4,3777.3,3.44504676]
[1753088215069,0.7579,3778.3,3778.0,2.6469024]
[1753088215444,0.7579,3778.3,3778.1,2.64683233]
[1753088215775,0.7579,3778.3,3778.0,2.64685694]
[1753088216077,4.3,3778.2,3777.3,0.7977]
[1753088216282,5.102,3779.0,3777.4,0.34451391]
[1753088216492,4.299,3778.9,3778.2,2.64670398]
[1753088216681,6.94527771,3778.9,3778.2,2.64670398]
[1753088216999,4.299,3778.9,3778.2,2.64670398]
[1753088217148,4.299,3778.9,3778.3,2.64668427]
[1753088217469,4.299,3778.8,3778.6,2.64648282]
[1753088217674,5.102,3779.0,3778.7,2.6464117]
[1753088217880,4.299,3778.9,3778.7,2.6464117]
[1753088218082,4.299,3778.8,3778.2,0.02646763]
[1753088218264,4.299,3778.8,3777.7,2.64710544]
[1753088218452,4.299,3778.8,3778.5,2.64654091]
[1753088218861,4.299,3778.8,3778.4,2.64660925]
[1753088219261,4.299,3778.8,3778.2,2.6467123]
[1753088219594,0.55,3778.7,3777.8,0.02647043]
[1753088219758,5.102,3779.0,3777.4,0.34451391]
[1753088219958,4.299,3778.9,3778.4,2.64657798]
[1753088220188,4.299,3778.9,3777.5,3.3262034]
[1753088220399,4.299,3778.9,3777.6,2.64718339]
[1753088220578,2.64636046,3778.8,3778.1,2.64680902]
[1753088220786,0.8146,3778.7,3777.5,0.67896674]
[1753088221109,3.46102992,3778.7,3778.0,2.64687279]
[1753088221478,3.39696938,3778.4,3777.8,2.64703811]
[1753088221674,2.64711562,3777.7,3777.1,0.001]
[1753088221869,4.298,3777.6,3777.1,0.001]
[1753088222072,3.0,3777.5,3777.1,0.001]
[1753088222280,6.94520039,3777.6,3777.1,0.001]
[1753088222281,7.298,3777.6,3777.1,0.001]
[1753088222482,3.0,3777.5,3777.1,0.001]
[1753088222992,2.64726543,3777.5,3777.1,0.001]
[1753088223169,5.64727903,3777.5,3777.1,0.001]
[1753088223374,4.298,3777.6,3777.1,0.001]
[1753088223696,6.94520016,3777.6,3777.1,0.001]
[1753088223896,4.298,3777.6,3777.1,0.001]
[1753088224111,0.8013,3777.2,3777.1,0.001]
[1753088224277,6.44876372,3777.2,3777.1,0.001]
[1753088224495,6.99876372,3777.2,3777.1,0.001]
[1753088224789,11.29676372,3777.2,3777.1,0.001]
[1753088224982,8.6493,3777.2,3777.1,0.001]
[1753088225290,11.29676372,3777.2,3777.1,0.001]
[1753088226193,11.31086372,3777.2,3777.1,0.001]
[1753088229569,7.01286372,3777.2,3777.1,0.001]
[1753088229778,11.30986372,3777.2,3777.1,0.001]
[1753088230574,4.3654,3777.2,3777.1,0.001]
[1753088230763,3.8154,3777.2,3777.1,0.001]
[1753088230962,8.1134,3777.2,3777.1,0.001]
[1753088231162,7.298,3777.2,3777.1,0.001]
[1753088231363,3.0,3777.2,3777.1,0.001]
[1753088231597,7.297,3777.2,3777.1,2.64853382]
[1753088231994,3.132,3777.5,3777.1,0.001]
[1753088232213,3.0,3777.3,3777.1,0.001]
[1753088232568,3.132,3777.3,3777.1,0.001]
[1753088234023,4.297,3777.2,3777.1,0.001]
[1753088235717,7.49446372,3777.2,3777.1,0.001]
[1753088235903,11.31596372,3777.2,3777.1,0.001]
[1753088236092,0.8215,3776.4,3775.8,0.132]
[1753088236420,3.0,3776.2,3776.0,2.64825371]
[1753088236723,7.296,3776.1,3776.0,2.64825371]
[1753088237995,4.296,3776.1,3776.0,2.64825371]
[1753088238920,0.9535,3776.4,3776.1,2.6482088]
[1753088239119,4.296,3776.3,3776.1,2.6482088]
[1753088239523,4.296,3776.3,3776.0,2.64828533]
[1753088239717,0.9535,3776.4,3776.0,2.64828533]
[1753088239925,4.296,3776.2,3776.0,2.64828533]
[1753088240132,4.296,3776.2,3775.9,2.64835507]
[1753088240315,4.296,3776.2,3776.0,2.64829815]
[1753088240515,4.296,3776.2,3775.8,2.78044514]
[1753088240718,4.296,3776.2,3776.0,2.64827638]
[1753088241630,4.296,3776.2,3775.9,2.6483503]
[1753088241945,4.296,3776.2,3775.1,0.7611]
[1753088242244,0.132,3776.1,3775.7,2.64851527]
[1753088242733,3.55,3776.1,3776.0,0.001]
[1753088242924,6.19823495,3776.1,3776.0,0.001]
[1753088244532,7.01963495,3776.1,3776.0,0.001]
[1753088246525,8.21963495,3776.1,3776.0,0.001]
[1753088246898,4.01389612,3775.3,3775.2,0.001]
[1753088247099,8.30789612,3775.3,3775.2,0.001]
[1753088247539,11.30789612,3775.3,3775.2,0.001]
[1753088247848,11.26969612,3775.3,3775.2,0.001]
[1753088249130,6.97569612,3775.3,3775.2,0.001]
[1753088249300,11.26969612,3775.3,3775.2,0.001]
[1753088249694,6.97569612,3775.3,3775.2,0.001]
[1753088249929,4.3269,3775.3,3775.2,0.001]
[1753088250132,0.132,3775.3,3775.2,0.001]
[1753088250333,4.426,3775.3,3775.2,0.001]
[1753088251132,4.976,3775.3,3775.2,0.001]
[1753088251500,6.176,3775.3,3775.2,0.001]
[1753088251901,1.332,3775.3,3775.2,0.001]
[1753088252101,8.626,3775.3,3775.2,0.001]
[1753088252348,9.176,3775.3,3775.2,0.001]
[1753088252549,12.65439612,3775.3,3775.2,0.001]
[1753088253122,12.65339612,3775.3,3775.2,0.001]
[1753088256243,10.0046,3775.3,3775.2,0.001]
[1753088256410,5.7116,3775.3,3775.2,0.001]
[1753088256718,9.174,3775.3,3775.2,0.001]
[1753088257239,9.174,3775.3,3775.2,2.64986628]
[1753088257240,5.624,3775.3,3775.2,2.64986628]
[1753088257444,5.624,3775.3,3775.2,3.18240251]
[1753088258040,4.292,3775.3,3775.2,3.18240251]
[1753088258253,0.7779,3776.0,3775.6,2.64858565]
[1753088258418,4.424,3775.9,3775.6,2.64858565]
[1753088259158,4.424,3775.9,3775.3,3.493071]
[1753088259322,4.424,3775.9,3775.5,2.6486065]
[1753088259643,0.132,3775.9,3775.5,2.6486065]
[1753088259823,5.491,3775.8,3775.3,3.88244376]
[1753088260122,5.491,3775.8,3775.6,2.64858297]
[1753088260450,5.491,3775.8,3775.5,2.64863573]
[1753088260832,4.291,3775.7,3775.6,2.64858565]
[1753088261329,1.2,3775.8,3775.7,2.6485155]
[1753088261722,1.2,3775.8,3775.7,2.80700065]
[1753088261723,5.49,3775.8,3775.7,2.80700065]
[1753088261918,4.29,3775.8,3775.7,2.7805155]
[1753088263140,0.132,3776.4,3776.1,2.64819087]
[1753088263346,4.29,3776.3,3776.2,2.64816482]
[1753088263511,0.132,3776.4,3776.2,2.64816482]
[1753088263710,4.29,3776.3,3776.2,2.64816482]
[1753088264229,0.132,3776.4,3775.7,0.132]
[1753088264230,0.132,3776.4,3776.3,2.64809469]
[1753088264433,0.132,3776.4,3776.3,3.40959469]
[1753088264626,6.355,3777.3,3776.9,2.64761491]
[1753088264852,1.2,3776.7,3776.3,1.4496121]
[1753088265043,4.289,3776.6,3776.5,2.64795445]
[1753088265253,4.289,3776.6,3776.5,2.67443399]